bitfinex/quotes_SOLUSD_20250930
["timestamp","ask_amount","ask_price","bid_price","bid_amount"]
[1759227864771,35.62509595,206.47,206.43,0.7]
[1759227864965,34.18,206.47,206.43,0.7]
[1759227865165,13.59559401,206.46,206.43,0.7]
[1759227865380,34.18,206.45,206.43,0.7]
[1759227866261,34.18,206.45,206.43,5.54420672]
[1759227866462,34.18,206.45,206.44,0.7]
[1759227866766,13.59559401,206.5,206.44,0.7]
[1759227867077,13.59559401,206.48,206.44,0.7]
[1759227867278,34.16,206.47,206.44,0.7]
[1759227867586,80.3,206.52,206.44,0.7]
[1759227867785,49.20068996,206.51,206.44,0.7]
[1759227868288,49.20068996,206.51,206.45,4.84378784]
[1759227868467,49.20068996,206.51,206.46,0.7]
[1759227869164,47.75559401,206.51,206.46,0.7]
[1759227869489,13.59559401,206.56,206.48,20.8]
[1759227869665,34.16,206.56,206.49,0.7]
[1759227869864,13.59559401,206.55,206.49,0.7]
[1759227870179,13.59559401,206.55,206.5,4.84261501]
[1759227870361,13.59559401,206.55,206.51,0.7]
[1759227872274,13.59559401,206.55,206.52,4.84214603]
[1759227872465,13.59559401,206.55,206.53,0.7]
[1759227873070,13.59559401,206.57,206.53,0.7]
[1759227874280,13.59559401,206.61,206.54,16.94587004]
[1759227874482,92.39693235,206.67,206.55,0.7]
[1759227874483,34.16,206.6,206.55,0.7]
[1759227874687,1.44509595,206.61,206.55,0.7]
[1759227874984,47.75559401,206.62,206.52,0.7]
[1759227874985,15.04068996,206.57,206.52,0.7]
[1759227875357,15.04068996,206.57,206.53,0.7]
[1759227875759,15.04068996,206.57,206.54,0.7]
[1759227876369,19.88167989,206.57,206.52,0.7]
[1759227876570,19.88167989,206.57,206.53,0.7]
[1759227877289,15.04068996,206.55,206.51,0.7]
[1759227877983,15.04068996,206.55,206.5,4.84260568]
[1759227878191,4.84076616,206.58,206.52,5.54199323]
[1759227878396,4.84076616,206.58,206.53,0.7]
[1759227878397,13.59559401,206.55,206.53,0.7]
[1759227878580,13.59559401,206.55,206.54,0.7]
[1759227880471,4.84109506,206.57,206.54,0.7]
[1759227880670,1.44509595,206.55,206.54,0.7]
[1759227881095,13.59559401,206.54,206.43,38.98425713]
[1759227881261,13.59559401,206.54,206.5,0.7]
[1759227881887,13.59559401,206.55,206.5,0.7]
[1759227883200,1.44509595,206.53,206.5,0.68]
[1759227883397,1.44509595,206.52,206.48,0.68]
[1759227883601,1.44509595,206.51,206.48,0.68]
[1759227883896,1.44509595,206.52,206.48,0.68]
[1759227884288,13.59559401,206.51,206.48,0.68]
[1759227885382,15.04068996,206.51,206.48,0.68]
[1759227886204,13.59559401,206.51,206.48,0.68]
[1759227886406,34.14,206.53,206.49,0.68]
[1759227886583,13.59559401,206.52,206.49,0.68]
[1759227887903,13.59559401,206.52,206.5,0.68]
[1759227888902,13.59559401,206.52,206.44,16.95364213]
[1759227888903,13.59559401,206.52,206.48,0.68]
[1759227889102,13.59559401,206.52,206.49,0.68]
[1759227889794,18.43778229,206.52,206.47,0.68]
[1759227889974,18.43778229,206.52,206.48,0.68]
[1759227890180,13.59559401,206.52,206.49,0.68]
[1759227891704,3.89705471,206.59,206.5,0.68]
[1759227891899,13.59559401,206.58,206.5,0.68]
[1759227892103,47.73559401,206.58,206.51,4.84238051]
[1759227892302,47.73559401,206.58,206.52,0.68]
[1759227893697,52.57633886,206.58,206.52,0.68]
[1759227894307,54.02143481,206.58,206.52,5.52206191]
[1759227894612,54.02143481,206.58,206.53,0.68]
[1759227894909,52.57633886,206.58,206.54,0.68]
[1759227895407,64.67818802,206.58,206.46,12.10850669]
[1759227895607,64.67818802,206.58,206.42,133.2]
[1759227895608,51.08259401,206.58,206.48,20.8]
[1759227895788,1.44509595,206.54,206.49,0.68]
[1759227895985,13.59559401,206.53,206.5,0.68]
[1759227896412,13.59559401,206.54,206.5,0.68]
[1759227897387,13.59559401,206.54,206.51,0.68]
[1759227897903,13.59559401,206.54,206.51,5.52234231]
[1759227898489,13.59559401,206.54,206.49,4.84262798]
[1759227898797,13.59559401,206.54,206.5,0.68]
[1759227899514,13.59559401,206.54,206.5,5.5226011]
[1759227900402,13.59559401,206.54,206.5,0.68]
[1759227901816,13.59559401,206.54,206.5,5.52253302]
[1759227902716,18.43727557,206.54,206.5,0.68]
[1759227903014,19.88237152,206.54,206.5,0.68]
[1759227904088,1.44509595,206.51,206.45,14.32039517]
[1759227904292,15.04068996,206.51,206.46,4.8434993]
[1759227904503,15.04068996,206.51,206.46,5.5234993]
[1759227905122,15.04068996,206.51,206.47,0.68]
[1759227905323,13.59559401,206.51,206.47,0.68]
[1759227906920,13.59559401,206.51,206.48,4.84308407]
[1759227907227,13.59559401,206.55,206.49,0.68]
[1759227907924,13.59559401,206.56,206.49,0.68]
[1759227908819,13.59559401,206.56,206.5,16.94915254]
[1759227909126,13.59559401,206.56,206.51,0.68]
[1759227911126,13.59559401,206.56,206.52,5.52214603]
[1759227911608,13.59559401,206.56,206.52,4.84214603]
[1759227912324,15.04068996,206.56,206.51,4.84237889]
[1759227912528,15.04068996,206.56,206.51,5.52237889]
[1759227912925,19.88191825,206.56,206.5,4.84259778]
[1759227913124,19.88191825,206.56,206.46,4.84355323]
[1759227913125,13.59559401,206.55,206.46,4.84355323]
[1759227913304,13.59559401,206.51,206.46,5.52355323]
[1759227913507,13.59559401,206.51,206.47,0.68]
[1759227913721,13.59559401,206.52,206.47,0.68]
[1759227913923,1.44509595,206.51,206.45,15.56576852]
[1759227914132,1.44509595,206.51,206.45,14.88576852]
[1759227914307,1.44509595,206.51,206.44,4.84398253]
[1759227914513,1.44509595,206.5,206.44,4.84398253]
[1759227914910,13.59559401,206.49,206.44,4.84398253]
[1759227915121,19.88360185,206.49,206.44,4.84398253]
[1759227915329,19.88360185,206.49,206.43,5.52423718]
[1759227915535,13.59559401,206.47,206.43,4.84423718]
[1759227916424,13.59559401,206.47,206.43,5.52423718]
[1759227917067,1.44509595,206.46,206.43,0.68]
[1759227917222,13.59559401,206.45,206.43,0.68]
[1759227917518,13.59559401,206.45,206.42,0.2]
[1759227917924,13.59559401,206.45,206.42,0.91]
[1759227918349,13.59559401,206.45,206.42,0.2]
[1759227919612,13.59559401,206.45,206.42,0.91]
[1759227919813,13.59559401,206.45,206.42,5.75445987]
[1759227920411,18.43867808,206.48,206.42,5.75445987]
[1759227920610,1.44509595,206.47,206.42,5.75445987]
[1759227921234,1.44509595,206.47,206.42,0.91]
[1759227921729,1.44509595,206.47,206.42,5.75445867]
[1759227922315,2.25651006,206.47,206.42,5.75445867]
[1759227922506,7.1000147,206.47,206.42,5.75445867]
[1759227923128,7.1000147,206.47,206.43,0.71]
[1759227923336,7.1000147,206.47,206.44,0.71]
[1759227924129,7.1000147,206.47,206.42,0.91]
[1759227924331,4.84350464,206.47,206.42,0.91]
[1759227924516,7.1000147,206.47,206.42,0.91]
[1759227925731,18.43915974,206.46,206.43,0.71]
[1759227926331,18.43915974,206.46,206.42,0.2]
[1759227926522,18.43915974,206.46,206.42,0.91]
[1759227926724,18.43915974,206.46,206.43,0.71]
[1759227928135,2.25651006,206.44,206.42,0.2]
[1759227928336,15.85210407,206.43,206.42,0.2]
[1759227929233,13.59559401,206.43,206.42,0.2]
[1759227929437,13.59559401,206.43,206.42,0.91]
[1759227929830,13.59559401,206.44,206.42,0.91]
[1759227930030,13.59559401,206.44,206.42,0.2]
[1759227930419,36.37651006,206.46,206.43,0.71]
[1759227930639,36.37651006,206.46,206.42,0.2]
[1759227930942,13.59559401,206.44,206.42,0.2]
[1759227932544,18.43965481,206.44,206.42,0.2]
[1759227932749,13.59559401,206.44,206.42,0.91]
[1759227933047,13.59559401,206.44,206.43,0.71]
[1759227933715,13.59559401,206.44,206.42,0.2]
[1759227934017,13.59559401,206.44,206.42,0.91]
[1759227934424,13.59559401,206.44,206.42,0.2]
[1759227934629,13.59559401,206.44,206.43,0.71]
[1759227935027,13.59559401,206.44,206.42,0.2]
[1759227935237,13.59559401,206.44,206.42,0.91]
[1759227935944,13.59559401,206.44,206.42,0.2]
[1759227937025,13.59559401,206.44,206.42,0.91]
[1759227938322,13.59559401,206.44,206.42,0.2]
[1759227938722,15.85210407,206.43,206.42,0.2]
[1759227938924,13.59559401,206.43,206.42,0.2]
[1759227939727,54.8163612,206.43,206.42,0.2]
[1759227940419,47.71559401,206.43,206.42,0.2]
[1759227940744,13.59559401,206.43,206.42,5.75449181]
[1759227941545,80.3,206.45,206.42,5.75449181]
[1759227941731,13.59559401,206.44,206.42,5.04449181]
[1759227941932,13.59559401,206.44,206.43,0.71]
[1759227947443,13.59559401,206.44,206.43,5.55425713]
[1759227950854,4.84144274,206.55,206.43,17.66489996]
[1759227951157,36.37651006,206.54,206.44,0.67]
[1759227951328,13.59559401,206.53,206.44,0.67]
[1759227951536,34.12,206.54,206.46,20.8]
[1759227951745,34.12,206.54,206.47,0.67]
[1759227952358,34.12,206.54,206.48,16.95079425]
[1759227952536,34.12,206.54,206.49,0.67]
[1759227954050,13.59559401,206.57,206.51,20.8]
[1759227954257,13.59559401,206.57,206.53,4.84191158]
[1759227954571,13.59559401,206.57,206.54,0.67]
[1759227954758,13.59559401,206.58,206.54,0.67]
[1759227955340,13.59559401,206.58,206.55,0.67]
[1759227955661,13.59559401,206.58,206.56,0.67]
[1759227955959,13.59559401,206.64,206.57,0.67]
[1759227956157,34.12,206.63,206.57,0.67]
[1759227956365,13.59559401,206.62,206.57,0.67]
[1759227956533,13.59559401,206.62,206.58,4.84073966]
[1759227956734,13.59559401,206.62,206.59,0.67]
[1759227957147,34.12,206.63,206.59,0.67]
[1759227957357,34.12,206.63,206.6,0.67]
[1759227957544,34.12,206.63,206.61,0.67]
[1759227957744,47.71559401,206.63,206.62,4.83980253]
[1759227958251,13.59559401,206.63,206.62,5.50980253]
[1759227958449,13.59559401,206.65,206.62,5.50980253]
[1759227958638,13.59559401,206.65,206.63,0.67]
[1759227960064,13.59559401,206.67,206.63,5.50937197]
[1759227960935,13.59559401,206.67,206.64,0.67]
[1759227961342,13.59559401,206.69,206.64,0.67]
[1759227961946,13.59559401,206.69,206.65,4.83909992]
[1759227962148,13.59559401,206.69,206.66,0.67]
[1759227963263,13.69559401,206.71,206.66,0.67]
[1759227964571,13.69559401,206.71,206.67,4.83863163]
[1759227964753,13.69559401,206.71,206.68,0.67]
[1759227965150,13.69559401,206.71,206.67,16.93521071]
[1759227965354,13.69559401,206.71,206.69,0.67]
[1759227965749,13.69559401,206.71,206.7,0.67]
[1759227966269,0.1,206.71,206.7,0.67]
[1759227966672,0.1,206.71,206.7,5.50792936]
[1759227971570,15.95210407,206.71,206.65,4.83909992]
[1759227971769,13.69559401,206.71,206.65,5.50909992]
[1759227971954,15.95210407,206.71,206.65,5.50909992]
[1759227972669,2.25651006,206.7,206.66,0.69]
[1759227973953,13.69559401,206.71,206.67,4.83863163]
[1759227974167,13.69559401,206.71,206.67,5.52863163]
[1759227974970,0.1,206.71,206.68,0.69]
[1759227975376,0.1,206.71,206.67,16.93521071]
[1759227975564,0.1,206.71,206.68,0.69]
[1759227975874,0.1,206.71,206.69,0.69]
[1759227976273,0.1,206.71,206.7,5.51792936]
[1759227979784,0.1,206.71,206.68,0.68]
[1759227980083,0.1,206.71,206.69,0.68]
[1759227981269,0.1,206.71,206.7,0.68]
[1759227982180,0.1,206.71,206.7,5.51792936]
[1759227988191,0.1,206.71,206.7,39.57792936]
[1759227988383,0.1,206.72,206.7,39.57792936]
[1759227988582,0.1,206.72,206.71,0.68]
[1759227989389,0.1,206.72,206.71,5.51769532]
[1759227991191,0.1,206.72,206.71,4.83769532]
[1759227991491,0.1,206.72,206.69,17.61328779]
[1759227991889,0.1,206.72,206.7,0.68]
[1759227993791,0.1,206.72,206.71,0.68]
[1759227994085,0.1,206.72,206.69,16.93328779]
[1759227994292,0.1,206.72,206.7,0.68]
[1759227994667,0.1,206.72,206.71,0.68]
[1759227995695,0.1,206.72,206.71,5.51769532]
[1759227997097,0.1,206.72,206.71,26.31769532]
[1759227999876,0.1,206.72,206.71,60.35769532]
[1759228001793,0.1,206.72,206.71,39.55769532]
[1759228004394,0.1,206.72,206.71,60.35769532]
[1759228011402,0.1,206.72,206.71,39.55769532]
[1759228013303,0.1,206.72,206.71,60.39769532]
[1759228014303,0.1,206.72,206.71,25.63769532]
[1759228014616,0.1,206.72,206.71,59.67769532]
[1759228015410,0.1,206.72,206.71,60.39769532]
[1759228019883,1e-08,206.72,206.71,60.39769532]
[1759228022884,1e-08,206.72,206.71,26.35769532]
[1759228023079,1e-08,206.72,206.71,60.37769532]
[1759228024804,1e-08,206.72,206.71,26.35769532]
[1759228025108,1e-08,206.72,206.71,38.85769532]
[1759228025901,1e-08,206.72,206.71,39.57769532]
[1759228026897,1e-08,206.72,206.71,38.85769532]
[1759228029125,1e-08,206.72,206.71,39.57769532]
[1759228032020,1e-08,206.72,206.71,41.51713627]
[1759228032393,1e-08,206.72,206.71,62.31713627]
[1759228032591,1e-08,206.73,206.71,41.51713627]
[1759228032897,1e-08,206.73,206.72,0.71]
[1759228033092,0.1,206.75,206.72,0.71]
[1759228033300,0.1,206.75,206.73,54.82]
[1759228033519,0.1,206.75,206.74,0.71]
[1759228033718,0.1,206.75,206.74,2.64915888]
[1759228034017,0.1,206.76,206.75,25.63675937]
[1759228034195,0.1,206.76,206.75,60.36675937]
[1759228037218,0.1,206.76,206.75,59.65675937]
[1759228037412,0.1,206.76,206.75,38.85675937]
[1759228038119,0.1,206.76,206.75,40.79591825]
[1759228039124,0.1,206.76,206.75,38.85675937]
[1759228042409,0.1,206.76,206.75,39.55675937]
[1759228042613,0.1,206.76,206.75,38.85675937]
[1759228045925,0.1,206.76,206.75,4.83675937]
[1759228046127,0.1,206.76,206.75,38.83675937]
[1759228046927,0.1,206.76,206.75,4.83675937]
[1759228047129,0.1,206.76,206.75,38.83675937]
[1759228048329,0.1,206.76,206.74,20.8]
[1759228048625,15.84465275,206.75,206.67,0.7]
[1759228048823,2.24905874,206.72,206.68,36.24905874]
[1759228049025,2.24905874,206.71,206.68,34.0]
[1759228049210,0.1,206.76,206.69,0.7]
[1759228049409,0.1,206.76,206.71,20.8]
[1759228049602,2.24905874,206.74,206.72,34.0]
[1759228049823,0.1,206.76,206.73,34.7]
[1759228050220,0.1,206.76,206.74,0.7]
[1759228050526,0.1,206.76,206.75,34.7]
[1759228052929,0.1,206.76,206.75,39.53675937]
[1759228053723,0.1,206.76,206.75,38.83675937]
[1759228054036,0.1,206.76,206.75,39.53675937]
[1759228054432,1e-08,206.76,206.75,39.53675937]
[1759228055510,1e-08,206.76,206.75,41.78581811]
[1759228064446,1e-08,206.76,206.75,7.78581811]
[1759228064646,1e-08,206.76,206.75,41.78581811]
[1759228068440,1e-08,206.76,206.75,7.08581811]
[1759228068647,1e-08,206.76,206.75,41.08581811]
[1759228072058,1e-08,206.76,206.75,41.79581811]
[1759228079441,1e-08,206.78,206.77,20.8]
[1759228079641,1e-08,206.78,206.77,54.8]
[1759228079860,1e-08,206.78,206.77,55.51]
[1759228080059,1e-08,206.78,206.77,69.10559401]
[1759228081743,1e-08,206.78,206.77,73.94188554]
[1759228082458,1e-08,206.78,206.77,39.94188554]
[1759228082644,1e-08,206.78,206.77,73.94188554]
[1759228082844,1e-08,206.78,206.77,73.23188554]
[1759228083154,1e-08,206.78,206.77,59.63629153]
[1759228084866,1e-08,206.78,206.77,25.63629153]
[1759228085069,1e-08,206.78,206.77,59.63629153]
[1759228086061,1e-08,206.78,206.77,60.34629153]
[1759228090575,1e-08,206.78,206.77,26.34629153]
[1759228090748,1e-08,206.78,206.77,60.32629153]
[1759228092470,1e-08,206.78,206.77,59.61629153]
[1759228092670,1e-08,206.78,206.76,4.83647124]
[1759228092874,1e-08,206.78,206.77,33.98]
[1759228093955,2.24905875,206.78,206.77,33.98]
[1759228094556,2.24905875,206.78,206.77,38.81629153]
[1759228094759,1e-08,206.78,206.77,38.81629153]
[1759228095158,2.24905875,206.78,206.77,38.81629153]
[1759228095877,1e-08,206.78,206.76,33.98]
[1759228096074,2.24905874,206.77,206.76,33.98]
[1759228096281,2.24905874,206.77,206.75,38.81672027]
[1759228101284,2.24905874,206.76,206.75,38.81672027]
[1759228101779,2.24905874,206.77,206.75,38.81672027]
[1759228102979,2.24905874,206.76,206.73,4.8372273]
[1759228103184,2.24905874,206.74,206.73,38.8172273]
[1759228103481,2.24905874,206.74,206.73,39.5172273]
[1759228103984,2.24905874,206.74,206.73,38.8172273]
[1759228104479,2.24905874,206.74,206.7,4.8378981]
[1759228104786,2.24905874,206.73,206.71,0.7]
[1759228105094,18.43170076,206.78,206.72,33.98]
[1759228105288,2.24905874,206.75,206.72,33.98]
[1759228105586,2.24905874,206.75,206.73,0.7]
[1759228106287,1.43997937,206.75,206.73,0.7]
[1759228106590,1.43997937,206.75,206.74,4.83699332]
[1759228107091,1e-08,206.78,206.74,4.83699332]
[1759228107390,1.43997937,206.76,206.74,4.83699332]
[1759228107686,1.43997937,206.76,206.72,38.81728519]
[1759228107991,1.43997937,206.76,206.73,0.7]
[1759228110093,1.43997937,206.75,206.74,4.83699332]
[1759228112990,1.43997937,206.75,206.73,4.8372273]
[1759228113290,1.43997937,206.77,206.74,0.7]
[1759228113666,1.43997937,206.77,206.75,0.7]
[1759228114184,1.43997937,206.76,206.75,0.7]
[1759228114890,1.43997937,206.76,206.75,4.83675937]
[1759228115278,1.43997937,206.77,206.75,5.53675937]
[1759228115477,1.43997937,206.77,206.76,0.7]
[1759228116801,1.43997937,206.77,206.74,4.83693687]
[1759228116988,1.43997937,206.75,206.74,38.81693687]
[1759228117184,1.43997937,206.75,206.74,39.51693687]
[1759228117805,1.43997937,206.75,206.73,4.83719914]
[1759228118113,1.43997937,206.75,206.73,39.51719914]
[1759228118675,1.43997937,206.74,206.73,38.81719914]
[1759228118904,1.43997937,206.74,206.73,4.83719914]
[1759228119412,1.43997937,206.74,206.73,5.53719914]
[1759228119997,4.83631244,206.77,206.73,5.53719914]
[1759228120199,1.43997937,206.74,206.73,5.53719914]
[1759228122112,1.43997937,206.75,206.73,5.53719914]
[1759228122280,1.43997937,206.75,206.74,0.69]
[1759228128622,1.43997937,206.75,206.72,4.8374411]
[1759228128912,1.43997937,206.73,206.72,4.8374411]
[1759228129114,1.43997937,206.73,206.72,5.5274411]
[1759228129498,1.43997937,206.74,206.72,5.5274411]
[1759228129702,1.43997937,206.74,206.73,0.69]
[1759228131222,1.43997937,206.74,206.71,0.69]
[1759228131397,1.43997937,206.73,206.72,0.69]
[1759228132602,1.43997937,206.74,206.72,0.69]
[1759228132804,1.43997937,206.76,206.72,0.69]
[1759228133198,1.43997937,206.76,206.73,4.8372273]
[1759228133400,1.43997937,206.76,206.74,0.69]
[1759228133814,1.43997937,206.76,206.75,0.69]
[1759228136121,1.43997937,206.76,206.73,4.8372273]
[1759228136424,18.43166788,206.78,206.74,0.69]
[1759228137412,13.59559402,206.78,206.74,0.69]
[1759228137616,13.59559402,206.78,206.74,5.52695336]
[1759228137918,1.43997937,206.75,206.74,5.52695336]
[1759228138113,13.59559402,206.78,206.74,5.52695336]
[1759228138417,1.43997937,206.76,206.75,0.69]
[1759228140517,15.03557338,206.76,206.75,0.69]
[1759228142610,15.03557338,206.76,206.69,16.93357201]
[1759228142817,1.43997937,206.75,206.72,0.69]
[1759228143023,1.43997937,206.74,206.72,0.69]
[1759228143346,1.43997937,206.74,206.73,0.69]
[1759228143724,1.43997937,206.75,206.73,0.69]
[1759228144045,1.43997937,206.75,206.74,0.69]
[1759228145838,1.43997937,206.75,206.73,4.83714633]
[1759228146135,1.43997937,206.74,206.73,4.83714633]
[1759228146724,1.43997937,206.74,206.73,5.52714633]
[1759228147049,1.43997937,206.74,206.73,0.69]
[1759228147215,1.43997937,206.74,206.71,4.83766136]
[1759228147415,18.43214391,206.76,206.71,4.83766136]
[1759228147416,1.43997937,206.72,206.71,5.52766136]
[1759228150028,1.43997937,206.73,206.71,5.52766136]
[1759228150737,1.43997937,206.73,206.7,4.83792936]
[1759228151129,1.43997937,206.73,206.71,0.69]
[1759228151338,1.43997937,206.73,206.72,0.69]
[1759228152246,1.43997937,206.73,206.72,5.5274613]
[1759228153035,1.43997937,206.74,206.72,5.5274613]
[1759228153444,1.43997937,206.74,206.72,0.66]
[1759228154327,15.03557338,206.74,206.73,0.66]
[1759228154526,13.59559401,206.74,206.73,0.66]
[1759228155243,13.59559401,206.74,206.72,4.83726811]
[1759228155426,13.59559401,206.74,206.73,0.66]
[1759228156245,15.03557338,206.74,206.73,0.66]
[1759228157148,13.59559401,206.74,206.73,0.66]
[1759228157448,15.03557338,206.74,206.73,0.66]
[1759228159047,13.59559401,206.74,206.73,0.66]
[1759228159839,13.59559401,206.74,206.69,12.09540858]
[1759228159840,13.59559401,206.73,206.69,12.09540858]
[1759228160044,15.03557338,206.73,206.7,0.72]
[1759228160937,13.59559401,206.73,206.7,0.72]
[1759228161345,13.59559401,206.73,206.71,0.72]
[1759228163146,13.59559401,206.73,206.71,5.5576467]
[1759228164346,13.59559401,206.73,206.72,0.72]
[1759228164557,33.96,206.74,206.72,0.72]
[1759228164728,13.59559401,206.76,206.72,0.72]
[1759228165448,13.59559401,206.76,206.73,0.72]
[1759228165649,13.59559401,206.76,206.68,14.54933436]
[1759228165830,13.59559401,206.76,206.69,0.72]
[1759228166546,18.43218384,206.76,206.7,4.83792936]
[1759228166746,18.43218384,206.76,206.71,0.72]
[1759228168358,18.43218384,206.76,206.71,5.55753927]
[1759228168568,18.43218384,206.76,206.72,0.72]
[1759228171751,20.68231515,206.76,206.7,0.72]
[1759228174159,20.68231515,206.76,206.7,5.55789563]
[1759228174368,20.68231515,206.76,206.71,0.72]
[1759228176475,20.68231515,206.76,206.71,5.55767004]
[1759228176765,20.68231515,206.76,206.72,0.72]
[1759228178167,20.68231515,206.76,206.71,0.72]
[1759228178752,20.68231515,206.76,206.69,0.72]
[1759228178964,2.25013131,206.74,206.68,5.55839752]
[1759228179270,2.25013131,206.74,206.69,0.72]
[1759228179271,13.59559401,206.73,206.69,0.72]
[1759228179845,13.59559401,206.73,206.7,0.72]
[1759228181571,18.43285686,206.73,206.7,0.72]
[1759228181773,18.43285686,206.73,206.67,0.72]
[1759228183267,30.52592511,206.73,206.66,0.72]
[1759228184656,30.52592511,206.73,206.63,19.39224462]
[1759228184859,4.83792936,206.7,206.64,0.72]
[1759228185056,38.77792936,206.7,206.64,0.72]
[1759228186165,38.77792936,206.7,206.64,5.5591187]
[1759228186352,38.77792936,206.7,206.65,0.72]
[1759228186552,38.77792936,206.7,206.66,0.72]
[1759228187368,38.77792936,206.7,206.64,0.72]
[1759228189074,38.77792936,206.7,206.64,5.5591237]
[1759228189574,38.77792936,206.7,206.65,0.72]
[1759228190461,38.77792936,206.7,206.65,5.55908065]
[1759228192781,38.77792936,206.7,206.65,0.72]
[1759228193882,34.39559401,206.67,206.61,0.72]
[1759228194067,68.33559401,206.67,206.61,0.72]
[1759228195384,68.33559401,206.67,206.62,4.83980253]
[1759228195568,68.33559401,206.67,206.63,0.72]
[1759228196383,68.33559401,206.67,206.63,5.55955027]
[1759228198062,73.17424626,206.67,206.63,5.55955027]
[1759228198482,73.17424626,206.67,206.63,0.72]
[1759228198982,68.33559401,206.67,206.63,0.72]
[1759228199691,73.17423673,206.67,206.63,0.72]
[1759228200191,73.17423673,206.67,206.62,4.83975372]
[1759228200378,73.17423673,206.67,206.63,0.72]
[1759228200685,73.17423673,206.67,206.56,4.84118139]
[1759228200686,15.84572532,206.64,206.56,4.84118139]
[1759228200985,15.84572532,206.64,206.55,0.72]
[1759228200986,13.59559401,206.6,206.55,0.72]
[1759228201870,13.59559401,206.6,206.56,4.84120836]
[1759228202195,13.59559401,206.6,206.57,0.72]
[1759228203492,13.59559401,206.65,206.57,0.72]
[1759228203989,13.59559401,206.65,206.58,4.84073966]
[1759228204174,13.59559401,206.65,206.59,0.72]
[1759228204582,18.43477069,206.65,206.59,0.72]
[1759228205693,18.43477069,206.65,206.6,4.84027105]
[1759228205897,18.43477069,206.65,206.6,5.56027105]
[1759228207988,18.43477069,206.65,206.58,5.56070196]
[1759228207989,2.25013131,206.64,206.58,5.56070196]
[1759228208575,13.59559401,206.6,206.56,0.72]
[1759228209296,2.25013131,206.6,206.55,0.72]
[1759228209976,18.43609935,206.59,206.55,0.72]
[1759228210180,20.68623066,206.59,206.54,0.2]
[1759228210370,20.68623066,206.59,206.54,0.92]
[1759228210567,20.68623066,206.59,206.54,5.76161818]
[1759228210773,13.59559401,206.59,206.55,0.72]
[1759228211195,15.84572532,206.59,206.55,0.72]
[1759228212002,13.59559401,206.59,206.57,4.840974]
[1759228212195,13.59559401,206.59,206.58,0.66]
[1759228212373,13.59559401,206.61,206.58,0.66]
[1759228212892,13.59559401,206.62,206.58,0.66]
[1759228215401,13.59559401,206.62,206.59,4.84050534]
[1759228215607,13.59559401,206.62,206.6,0.66]
[1759228216497,13.59559401,206.62,206.59,4.84050534]
[1759228216800,13.59559401,206.63,206.59,5.54050534]
[1759228217101,15.84572532,206.63,206.59,0.7]
[1759228218100,15.84572532,206.63,206.59,5.54047757]
[1759228218804,20.68532522,206.63,206.59,0.7]
[1759228221808,15.84572532,206.63,206.59,5.54046254]
[1759228223404,15.84572532,206.63,206.6,0.7]
[1759228225108,13.59559401,206.63,206.6,0.7]
[1759228225283,15.84572532,206.63,206.6,0.7]
[1759228226388,13.59559401,206.61,206.57,5.54074416]
[1759228226589,13.59559401,206.61,206.58,0.7]
[1759228226989,13.59559401,206.61,206.57,4.84074416]
[1759228226990,13.59559401,206.61,206.59,0.7]
[1759228227807,13.59559401,206.61,206.58,0.7]
[1759228228194,15.03768965,206.61,206.58,0.7]
[1759228228399,15.03768965,206.61,206.58,5.54062637]
[1759228229096,15.03768965,206.61,206.59,0.7]
[1759228229407,15.03768965,206.61,206.58,0.7]
[1759228229609,15.03768965,206.61,206.59,0.7]
[1759228230190,15.03768965,206.61,206.56,12.10296372]
[1759228230391,15.03768965,206.61,206.57,0.7]
[1759228231010,15.03768965,206.61,206.58,4.84073966]
[1759228231587,15.03768965,206.61,206.58,5.54073966]
[1759228231786,15.03768965,206.61,206.59,0.7]
[1759228232308,80.3,206.64,206.58,16.94258882]
[1759228232610,13.59559401,206.62,206.6,0.7]